bitfinex-derivatives/quotes_ETHF0:USTF0_20251007
["timestamp","ask_amount","ask_price","bid_price","bid_amount"]
[1759829660018,0.96151,4677.3,4676.8,3.2078]
[1759829660311,0.38468,4676.4,4676.2,0.38720334]
[1759829660617,0.38468,4676.4,4676.2,0.00251334]
[1759829660811,0.38468,4676.4,4676.3,0.214]
[1759829664516,0.38468,4676.4,4676.2,0.00251334]
[1759829665119,0.7906,4676.3,4676.2,0.46741334]
[1759829665818,0.7906,4676.3,4676.2,0.23351334]
[1759829667213,3.60013824,4676.3,4676.2,0.00251334]
[1759829670818,3.98481824,4676.3,4676.2,0.00251334]
[1759829680331,3.98481824,4676.3,4676.2,0.22571334]
[1759829680934,3.98481824,4676.3,4676.2,0.79411334]
[1759829681233,3.98481824,4676.3,4676.2,0.22571334]
[1759829681435,3.98481824,4676.3,4676.2,0.00251334]
[1759829688140,4.45013845,4676.3,4676.2,0.00251334]
[1759829688339,4.45013845,4676.3,4676.2,0.22571334]
[1759829688532,3.98481824,4676.3,4676.2,0.22571334]
[1759829689039,3.98481824,4676.3,4676.2,0.61040334]
[1759829689240,4.45063142,4676.3,4676.2,0.61040334]
[1759829689838,1.64109318,4676.3,4676.2,0.83330334]
[1759829690040,1.17528,4676.3,4676.2,1.17880334]
[1759829690238,1.64124932,4676.3,4676.2,1.17880334]
[1759829690934,1.17528,4676.3,4676.2,1.17880334]
[1759829691843,1.64121139,4676.3,4676.2,0.79411334]
[1759829692042,1.64121139,4676.3,4676.2,1.17880334]
[1759829693437,1.64121139,4676.3,4676.2,0.00251334]
[1759829698042,1.64121139,4676.3,4676.2,0.22571334]
[1759829698744,1.25653139,4676.3,4676.2,0.83330334]
[1759829698939,0.562,4676.3,4676.2,1.17880334]
[1759829699140,0.3446,4676.3,4676.2,1.17880334]
[1759829699734,0.94568,4676.3,4676.2,1.17880334]
[1759829699940,1.17058,4676.3,4676.2,1.17880334]
[1759829700242,1.63666198,4676.3,4676.2,0.00251334]
[1759829700548,1.63666198,4676.3,4676.2,0.21651334]
[1759829701640,1.63666198,4676.3,4676.2,0.00251334]
[1759829701848,4.45953369,4676.3,4676.2,0.00251334]
[1759829705645,4.45953369,4676.3,4676.2,0.21721334]
[1759829705849,4.07485369,4676.3,4676.2,0.60190334]
[1759829706150,1.63666198,4676.3,4676.2,1.12510334]
[1759829707238,1.63666198,4676.3,4676.2,0.81530334]
[1759829708045,1.63666198,4676.3,4676.2,0.21721334]
[1759829708359,1.63666198,4676.3,4676.2,0.00251334]
[1759829708843,4.47448775,4676.3,4676.2,0.00251334]
[1759829720550,0.7603,4675.4,4675.3,0.59407]
[1759829720748,0.1307,4676.0,4675.3,0.59407]
[1759829720749,0.60632,4675.8,4675.7,1.12373]
[1759829720945,0.93662,4675.8,4675.7,1.12373]
[1759829721143,1.14502,4675.8,4675.7,1.12373]
[1759829721352,0.3303,4675.8,4675.7,1.12373]
[1759829721550,0.33291763,4675.8,4675.7,1.12607998]
[1759829721753,0.55451763,4675.8,4675.7,1.12607998]
[1759829723452,1.14763763,4675.8,4675.7,1.12607998]
[1759829723649,1.14763763,4675.8,4675.7,0.38707998]
[1759829723855,1.14763763,4675.8,4675.7,0.81037998]
[1759829724056,1.14763763,4675.8,4675.7,1.13277998]
[1759829724560,1.14763763,4675.8,4675.7,0.91877998]
[1759829724765,1.14763763,4675.8,4675.7,0.59637998]
[1759829725063,1.14763763,4675.8,4675.7,0.81037998]
[1759829725358,0.76291763,4675.8,4675.7,1.34007998]
[1759829728964,0.55451763,4675.8,4675.7,1.34007998]
[1759829729166,0.33291763,4675.8,4675.7,1.34007998]
[1759829731069,0.55451763,4675.8,4675.7,1.34007998]
[1759829731368,0.76291763,4675.8,4675.7,1.34007998]
[1759829734166,0.76291763,4675.8,4675.7,0.80367998]
[1759829734366,0.76291763,4675.8,4675.7,0.60107998]
[1759829734576,1.14763763,4675.8,4675.7,0.80607998]
[1759829735366,0.76291763,4675.8,4675.7,1.33847998]
[1759829735972,0.55451763,4675.8,4675.7,1.33847998]
[1759829737978,0.55451763,4675.8,4675.7,1.12447998]
[1759829738176,0.55451763,4675.8,4675.7,1.33847998]
[1759829738580,0.55451763,4675.8,4675.7,1.12447998]
[1759829738778,0.55451763,4675.8,4675.7,1.33847998]
[1759829740080,0.93923763,4675.8,4675.7,1.33847998]
[1759829740278,0.93923763,4675.8,4675.7,1.12447998]
[1759829740478,0.93923763,4675.8,4675.7,0.95374998]
[1759829740980,0.55451763,4675.8,4675.7,1.33847998]
[1759829742683,0.55451763,4675.8,4675.7,1.12447998]
[1759829742884,0.55451763,4675.8,4675.7,1.33847998]
[1759829745482,0.93923763,4675.8,4675.7,1.33847998]
[1759829745979,1.14193763,4675.8,4675.7,1.33847998]
[1759829746583,1.14193763,4675.8,4675.7,1.12447998]
[1759829746882,0.75721763,4675.8,4675.7,1.33847998]
[1759829747084,0.75721763,4675.8,4675.7,1.12447998]
[1759829747479,0.55451763,4675.8,4675.7,1.33847998]
[1759829747988,0.38733763,4675.8,4675.7,1.33847998]
[1759829748185,0.70593763,4675.8,4675.7,1.33847998]
[1759829748582,0.32121763,4675.8,4675.7,1.33847998]
[1759829751186,0.54131763,4675.8,4675.7,1.33847998]
[1759829753196,0.74401763,4675.8,4675.7,0.38707998]
[1759829753398,0.74401763,4675.8,4675.7,0.60107998]
[1759829753694,0.74401763,4675.8,4675.7,0.80287998]
[1759829754098,0.74401763,4675.8,4675.7,1.12497998]
[1759829755396,0.54131763,4675.8,4675.7,1.32837998]
[1759829757203,0.74401763,4675.8,4675.7,1.32837998]
[1759829757391,0.74401763,4675.8,4675.7,1.11437998]
[1759829757590,0.74401763,4675.8,4675.7,1.32837998]
[1759829759604,0.74401763,4675.8,4675.7,1.00627998]
[1759829760101,0.74401763,4675.8,4675.7,0.80287998]
[1759829760301,0.74401763,4675.8,4675.7,0.38707998]
[1759829760504,0.74401763,4675.8,4675.7,0.60107998]
[1759829761891,0.74401763,4675.8,4675.7,0.80287998]
[1759829765605,0.74401763,4675.8,4675.7,1.30827998]
[1759829767102,1.12873763,4675.8,4675.7,1.00287998]
[1759829767493,1.12873763,4675.8,4675.7,0.41814998]
[1759829767898,1.12873763,4675.8,4675.7,0.80287998]
[1759829768604,1.12873763,4675.8,4675.7,0.41814998]
[1759829768804,1.12873763,4675.8,4675.7,0.80287998]
[1759829770406,1.12873763,4675.8,4675.7,0.00234998]
[1759829770602,1.12873763,4675.8,4675.7,0.21634998]
[1759829771000,1.12873763,4675.8,4675.7,0.00234998]
[1759829771196,1.12873763,4675.8,4675.7,0.21634998]
[1759829772000,0.96184,4675.7,4675.1,1.5288885]
[1759829772204,1.25019,4675.0,4674.9,3.2078]
[1759829772407,1.25019,4675.0,4674.9,3.4218]
[1759829772909,1.25019,4675.0,4674.9,3.2078]
[1759829773109,1.25019,4675.0,4674.9,3.20974036]
[1759829773308,1.25019,4675.0,4674.9,3.42374036]
[1759829774009,0.8654,4675.0,4674.9,3.42374036]
[1759829774712,0.3327,4675.5,4675.4,0.7113]
[1759829775014,0.3327,4675.5,4675.4,1.31006]
[1759829775313,0.6557,4675.5,4675.4,1.31006]
[1759829775706,0.32561763,4675.8,4675.7,0.59063]
[1759829775906,0.00261763,4675.8,4675.7,1.31003]
[1759829780005,0.6557,4677.0,4676.9,1.09593]
[1759829780206,0.6557,4677.0,4676.9,1.30993]
[1759829780405,0.8654,4677.0,4676.9,1.30993]
[1759829781009,0.867443,4677.0,4676.9,1.30993]
[1759829782518,0.533343,4677.0,4676.9,0.9253]
[1759829782718,0.741,4676.6,4676.5,0.5113]
[1759829783011,0.8654,4676.5,4676.1,0.3847]
[1759829783313,0.8654,4676.5,4675.8,3.5132]
[1759829783314,0.741,4676.3,4676.2,0.59869]
[1759829783511,0.741,4676.3,4676.2,0.80459]
[1759829786813,0.741,4676.3,4676.2,1.00459]
[1759829787008,0.741,4676.3,4676.2,1.30999]
[1759829788815,0.741,4676.3,4676.2,1.09599]
[1759829789007,0.741,4676.3,4676.2,1.30999]
[1759829794421,1.12568,4676.3,4676.2,0.59869]
[1759829794918,0.741,4676.3,4676.2,0.80159]
[1759829797124,0.741,4676.3,4676.2,0.58759]
[1759829797320,0.741,4676.3,4676.2,0.80159]
[1759829798726,0.741,4676.3,4676.2,1.30629]
[1759829805731,0.5313,4676.3,4676.2,1.30629]
[1759829805932,0.3256,4676.8,4676.5,0.5489]
[1759829806226,0.5375,4676.8,4676.7,0.7591]
[1759829806631,0.5375,4676.8,4676.7,1.14375]
[1759829806832,0.3256,4676.8,4676.7,1.14375]
[1759829808030,0.5375,4676.8,4676.7,1.14375]
[1759829811335,0.7538,4676.8,4676.7,1.14375]
[1759829811534,0.7538,4676.8,4676.7,0.81325]
[1759829811739,0.7538,4676.8,4676.7,0.59485]
[1759829812636,0.7538,4676.8,4676.7,1.14375]
[1759829813636,0.886943,4677.0,4676.9,0.59483]
[1759829813939,0.886943,4677.0,4676.9,1.35773]
[1759829814638,1.271573,4677.0,4676.9,1.35773]
[1759829815038,0.886943,4677.0,4676.9,1.35773]
[1759829816359,0.539543,4677.0,4676.9,1.35773]
[1759829816654,0.002043,4677.0,4676.9,1.35773]
[1759829816949,0.3363,4678.0,4677.9,1.14365]
[1759829817152,0.5526,4678.0,4677.9,1.35765]
[1759829817352,0.8782,4678.0,4677.9,1.35765]
[1759829817755,0.88087718,4678.0,4677.9,1.35765]
[1759829820354,0.88087718,4678.0,4677.9,0.9731]
[1759829821949,0.88087718,4678.0,4677.9,0.4242]
[1759829822146,0.88087718,4678.0,4677.9,0.9731]
[1759829822352,0.4282,4677.7,4677.6,3.59237]
[1759829822648,0.7538,4677.7,4677.6,3.80637]
[1759829822856,0.7538,4677.7,4677.6,4.01657]
[1759829823956,0.7538,4677.7,4677.6,4.56547]
[1759829824754,0.5375,4677.7,4677.6,4.56547]
[1759829826550,0.3256,4677.7,4677.6,4.56547]
[1759829826751,0.00267718,4678.0,4677.9,0.38455]
[1759829826952,0.00267718,4678.0,4677.9,1.34085]
[1759829827357,3.5376,4679.1,4678.9,0.425]
[1759829827567,0.3298,4679.4,4679.0,1.0442]
[1759829827861,0.5416,4679.4,4679.3,1.12674]
[1759829828062,0.7424,4680.4,4680.3,1.12665]
[1759829828261,0.54372996,4680.4,4680.3,4.55054023]
[1759829828459,0.1298,4681.5,4681.4,0.7423]
[1759829828460,0.6714,4681.5,4681.4,0.7423]
[1759829828659,0.8722,4681.5,4681.4,0.9563]
[1759829828861,0.8722,4681.5,4681.4,0.639]
[1759829829457,0.87428492,4681.5,4681.4,0.639]
[1759829829661,0.87428492,4681.5,4681.3,0.38427]
[1759829829662,0.3298,4681.4,4681.0,0.38429]
[1759829829867,0.7424,4681.1,4681.0,0.80929]
[1759829830167,0.7424,4681.1,4681.0,1.34059]
[1759829830365,0.5416,4681.1,4681.0,1.34059]
[1759829830762,0.13188492,4681.5,4681.4,0.38426]
[1759829830958,0.34368492,4681.5,4681.4,1.34056]
[1759829831457,0.67348492,4681.5,4681.4,1.34056]
[1759829832164,0.87428492,4681.5,4681.4,1.34056]
[1759829833062,0.33188492,4681.5,4681.4,4.54836]
[1759829833264,0.00208492,4681.5,4681.4,4.54836]
[1759829835658,0.00208492,4681.5,4681.4,9.54836]
[1759829836667,0.3298,4682.3,4682.2,0.3842]
[1759829836964,0.02764408,4682.5,4682.4,1.12648]
[1759829837660,0.03027578,4682.5,4682.4,1.12648]
[1759829837970,0.3298,4683.4,4682.8,1.12645]
[1759829838161,0.3298,4683.9,4683.8,1.12636]
[1759829838362,3.3376,4685.0,4684.3,0.7423]
[1759829838565,0.7424,4684.4,4684.3,0.425]
[1759829838764,0.7424,4684.4,4684.3,0.639]
[1759829838963,0.74417476,4684.4,4684.3,0.64159688]
[1759829839863,0.74417476,4684.4,4684.3,0.00259688]
[1759829840063,5.74417476,4684.4,4684.3,0.00259688]
[1759829840262,5.74417476,4684.4,4683.4,0.6029]
[1759829840263,0.8722,4683.5,4683.4,0.6029]
[1759829840662,0.8722,4683.5,4683.4,1.0231]
[1759829840862,0.8722,4683.5,4683.4,0.639]
[1759829841169,0.8722,4683.5,4683.4,0.95833519]
[1759829841369,0.8722,4683.5,4683.4,0.64103519]
[1759829841966,0.8722,4683.5,4683.4,0.95833519]
[1759829842265,0.5416,4683.5,4683.4,0.95833519]
[1759829842569,0.8722,4683.5,4683.4,0.95833519]
[1759829842974,0.8722,4683.5,4683.4,0.64103519]
[1759829843459,0.8722,4683.5,4683.4,0.42703519]
[1759829843662,0.8722,4683.5,4683.4,0.64103519]
[1759829846271,0.8722,4683.5,4683.4,0.42703519]
[1759829846463,0.8722,4683.5,4683.4,0.43483519]
[1759829846870,0.8722,4683.5,4683.4,0.22083519]
[1759829847170,0.8722,4683.5,4683.4,0.00203519]
[1759829847362,5.8722,4683.5,4683.4,0.21603519]
[1759829847969,8.58496298,4683.5,4683.4,0.21603519]
[1759829849473,8.58496298,4683.5,4683.4,0.00203519]
[1759829849668,0.1298,4683.0,4682.6,3.2078]
[1759829849873,0.1298,4683.0,4682.0,0.3173]
[1759829849874,0.7424,4682.1,4682.0,3.2078]
[1759829850070,0.2118,4681.6,4681.5,3.4266]
[1759829850264,0.7424,4681.6,4681.5,4.54836]
[1759829850468,0.7424,4681.6,4681.5,4.23106]
[1759829850671,0.7424,4681.6,4681.5,0.22143165]
[1759829850974,0.7424,4681.6,4681.5,0.21663165]
[1759829851178,0.75917204,4681.6,4681.5,0.95893165]
[1759829851676,0.55837204,4681.6,4681.5,1.07503165]
[1759829851877,0.75917204,4681.6,4681.5,0.95893165]
[1759829853678,0.75917204,4681.6,4681.5,0.74493165]
[1759829853976,0.75917204,4681.6,4681.5,0.95893165]
[1759829854375,0.55837204,4681.6,4681.5,0.95893165]
[1759829854776,0.76587204,4681.6,4681.5,0.64163165]
[1759829855478,0.76587204,4681.6,4681.5,0.00263165]
[1759829855672,0.76587204,4681.6,4681.5,0.21663165]
[1759829856976,0.76587204,4681.6,4681.5,0.93883165]
[1759829857275,0.55837204,4681.6,4681.5,0.93883165]
[1759829858375,1.02363623,4681.6,4681.5,0.93883165]
[1759829858582,1.23623623,4681.6,4681.5,0.21663165]
[1759829859281,1.23623623,4681.6,4681.5,0.42493165]
[1759829859579,1.23623623,4681.6,4681.5,0.62943165]
[1759829860282,1.23623623,4681.6,4681.5,0.95353165]
[1759829861675,0.77097204,4681.6,4681.5,0.95353165]
[1759829861876,1.23634165,4681.6,4681.5,0.95353165]
[1759829862476,1.23634165,4681.6,4681.5,0.62943165]
[1759829862984,0.77097204,4681.6,4681.5,0.62943165]
[1759829863181,0.77097204,4681.6,4681.5,0.95353165]
[1759829864683,0.77097204,4681.6,4681.5,0.62943165]
[1759829864888,0.77097204,4681.6,4681.5,0.42493165]
[1759829865083,0.77097204,4681.6,4681.5,1.33779165]
[1759829868386,1.15522204,4681.6,4681.5,1.01369165]
[1759829868587,1.15522204,4681.6,4681.5,1.33779165]
[1759829868780,1.15522204,4681.6,4681.5,1.01369165]
[1759829871284,1.16380801,4681.6,4681.5,0.00263165]
[1759829871485,1.62954652,4681.6,4681.5,0.00263165]
[1759829871888,9.4381794,4681.6,4681.5,0.21663165]
[1759829872282,9.0539294,4681.6,4680.3,3.2078]
[1759829872481,1.24184,4680.5,4680.4,0.4223]
[1759829873181,1.26719801,4680.5,4680.4,0.4223]
[1759829873384,1.269285,4680.5,4680.4,0.42477333]
[1759829874593,1.269285,4680.5,4680.4,0.21647333]
[1759829875390,0.884945,4680.5,4680.4,0.42477333]
[1759829875592,0.884945,4680.5,4680.4,0.95337333]
[1759829876193,0.755245,4680.5,4680.4,0.73937333]
[1759829876394,0.755245,4680.5,4680.4,0.95337333]
[1759829877197,0.755245,4680.5,4680.4,0.73937333]
[1759829877491,0.329045,4680.5,4680.4,0.95337333]
[1759829877690,0.027445,4680.5,4680.4,0.95337333]
[1759829878297,0.329045,4680.5,4680.4,0.95337333]
[1759829880300,0.329045,4680.5,4680.4,0.73937333]
[1759829880500,0.329045,4680.5,4680.4,0.95337333]
[1759829880900,0.329045,4680.5,4680.4,0.73937333]
[1759829881103,0.329045,4680.5,4680.4,0.95337333]
[1759829881302,0.542645,4680.5,4680.4,0.95337333]
[1759829881799,1.269285,4680.5,4680.4,0.00247333]
[1759829881999,4.477085,4680.5,4680.4,0.00247333]
[1759829882198,4.477085,4680.5,4680.4,0.16747333]
[1759829882199,4.94414687,4680.5,4680.4,0.16747333]
[1759829882401,4.94414687,4680.5,4680.4,0.21647333]
[1759829883400,4.94414687,4680.5,4680.4,0.00247333]
[1759829883594,4.94414687,4680.5,4680.4,0.21647333]
[1759829883792,4.94414687,4680.5,4680.4,0.00247333]
[1759829883999,4.94414687,4680.5,4680.4,0.21647333]
[1759829884197,7.75462669,4680.5,4680.4,0.21647333]
[1759829885297,7.28756482,4680.5,4680.4,0.21647333]
[1759829885497,7.28756482,4680.5,4680.4,0.00247333]
[1759829886399,0.5502,4679.6,4679.5,0.38441]
[1759829886595,0.7537,4679.6,4679.5,1.33061]
[1759829887299,0.77905801,4679.6,4679.5,0.4207]
[1759829887506,1.16346801,4679.6,4679.5,0.21674562]
[1759829888605,0.77905801,4679.6,4679.5,0.94894562]
[1759829889404,0.77905801,4679.6,4679.5,0.63744562]
[1759829890605,0.77905801,4679.6,4679.5,0.42344562]
[1759829890805,0.77905801,4679.6,4679.5,0.63744562]
[1759829893001,0.77905801,4679.6,4679.5,0.42344562]
[1759829893205,0.77905801,4679.6,4679.5,0.63744562]
[1759829893506,0.77905801,4679.6,4679.5,0.94894562]
[1759829893707,0.77905801,4679.6,4679.5,0.73494562]
[1759829893909,0.77905801,4679.6,4679.5,0.94894562]
[1759829894712,0.77905801,4679.6,4679.5,0.73494562]
[1759829895009,0.77905801,4679.6,4679.5,0.94894562]
[1759829895010,1.16346801,4679.6,4679.5,0.94894562]
[1759829895307,1.16346801,4679.6,4679.5,1.33336562]
[1759829895802,1.16346801,4679.6,4679.5,0.80786562]
[1759829896008,1.16346801,4679.6,4679.5,0.63744562]
[1759829896806,1.16346801,4679.6,4679.5,0.80786562]
[1759829897004,1.16346801,4679.6,4679.5,1.02186562]
[1759829897406,1.16346801,4679.6,4679.5,1.33336562]
[1759829897813,1.16346801,4679.6,4679.5,1.11936562]
[1759829898115,1.16346801,4679.6,4679.5,1.33336562]
[1759829898501,1.16346801,4679.6,4679.5,0.63744562]
[1759829898701,1.16346801,4679.6,4679.5,0.20384562]
[1759829898907,1.16346801,4679.6,4679.5,0.00274562]
[1759829899310,1.16346801,4679.6,4679.5,0.21674562]
[1759829899711,3.96202912,4679.6,4679.5,0.00274562]
[1759829899910,3.96202912,4679.6,4679.5,0.21674562]
[1759829900808,3.96202912,4679.6,4679.5,0.00274562]
[1759829901411,4.42904251,4679.6,4679.5,0.00274562]
[1759829902116,3.96202912,4679.6,4679.5,0.00274562]
[1759829902320,4.42930258,4679.6,4679.5,0.00274562]
[1759829903412,3.96202912,4679.6,4679.5,0.00274562]
[1759829905718,3.96202912,4679.6,4679.5,0.20384562]
[1759829905920,1.16346801,4679.6,4679.5,0.73494562]
[1759829907817,1.16346801,4679.6,4679.5,0.42344562]
[1759829908017,0.77905801,4679.6,4679.5,0.73494562]
[1759829909523,0.77905801,4679.6,4679.5,0.42344562]
[1759829910423,0.77905801,4679.6,4679.5,0.00274562]
[1759829911120,0.77905801,4679.6,4679.5,0.20384562]
[1759829911419,0.77905801,4679.6,4679.5,0.00274562]
[1759829911721,3.99890716,4679.6,4679.5,0.00274562]
[1759829912417,1.26141,4678.5,4678.0,3.2078]
[1759829912629,0.7537,4678.1,4678.0,4.32454]
[1759829912930,0.7537,4678.1,4678.0,3.2078]
[1759829913220,0.7537,4678.1,4678.0,3.42457568]
[1759829913526,0.77905801,4678.1,4678.0,3.42457568]
[1759829915118,0.77905801,4678.1,4678.0,3.62567568]
[1759829915326,0.77905801,4678.1,4678.0,4.16867568]
[1759829915925,0.57625801,4678.1,4678.0,4.16867568]
[1759829916424,0.35635801,4678.1,4678.0,4.16867568]
[1759829916626,0.02535801,4678.1,4678.0,4.25737568]
[1759829919725,0.02535801,4678.1,4678.0,9.25737568]
[1759829919926,0.01573927,4678.1,4678.0,9.25737568]
[1759829920127,0.3049,4679.0,4678.9,0.7326]
[1759829920325,0.3049,4679.0,4678.9,1.33107]
[1759829920921,0.1232,4679.5,4678.9,1.33107]
[1759829921122,0.3049,4679.5,4679.0,0.8521]
[1759829921423,0.38441,4679.6,4679.0,0.8521]
[1759829921630,3.7291,4679.1,4679.0,0.7326]
[1759829922427,3.5127,4679.1,4679.0,0.7326]
[1759829923227,0.3049,4679.1,4679.0,3.9404]
[1759829923630,0.8661,4679.5,4679.4,0.428]
[1759829923837,0.8661,4679.5,4679.4,0.9466]
[1759829924531,0.8661,4679.5,4679.4,1.33103]
[1759829925824,3.2078,4679.8,4679.7,0.3844]
[1759829926025,3.2078,4679.8,4679.7,1.331]
[1759829926621,3.5127,4679.8,4679.7,1.331]
[1759829926830,3.7291,4679.8,4679.7,1.331]
[1759829927634,3.5127,4679.8,4679.7,1.331]
[1759829928030,3.7291,4679.8,4679.7,1.331]
[1759829928734,0.5213,4679.8,4679.7,1.331]
[1759829929426,0.7355,4679.8,4679.7,0.8177]
[1759829930231,0.7355,4679.8,4679.7,1.0264]
[1759829930421,0.7355,4679.8,4679.3,0.3046]
[1759829930422,0.3049,4679.7,4679.3,0.3046]
[1759829930628,0.7355,4679.3,4679.2,3.59225]
[1759829930931,0.7355,4679.3,4679.2,3.2078]
[1759829931126,0.3049,4679.2,4679.1,4.02025]
[1759829931433,0.5612,4680.0,4679.9,0.7326]
[1759829931633,0.5612,4680.0,4679.9,0.642]
[1759829931839,0.8661,4680.0,4679.9,0.4333]
[1759829932131,0.8661,4680.0,4679.9,0.642]
[1759829932336,0.3049,4680.4,4680.3,0.81236]
[1759829932635,0.5213,4680.4,4680.3,1.33096]
[1759829933326,0.53847374,4680.4,4680.3,1.33096]
[1759829933934,0.54705555,4680.4,4680.3,1.33096]
[1759829935237,0.02575555,4680.4,4680.3,1.33096]
[1759829935432,0.00208699,4680.5,4680.4,0.3046]
[1759829935633,0.00208699,4680.5,4680.4,0.7326]
[1759829936635,0.73758699,4680.5,4680.4,0.7326]
[1759829936831,0.73758699,4680.5,4680.4,0.9466]
[1759829937025,0.73758699,4680.5,4680.4,0.7326]
[1759829937236,0.86818699,4680.5,4680.4,0.642]
[1759829938136,0.86818699,4680.5,4680.4,0.428]
[1759829938333,0.86818699,4680.5,4680.4,0.642]
[1759829938637,0.86818699,4680.5,4680.4,0.9466]
[1759829939837,0.86818699,4680.5,4680.4,0.2193]
[1759829940038,0.86818699,4680.5,4680.4,0.4333]
[1759829940634,0.94762699,4680.5,4680.1,3.2078]
[1759829940834,0.94762699,4680.5,4679.5,3.59222]
[1759829940835,0.7355,4679.6,4679.5,3.59222]
[1759829941131,0.7355,4679.6,4679.5,3.4218]
[1759829941332,0.7355,4679.6,4679.5,3.2078]
[1759829941527,0.7355,4679.6,4679.5,3.4218]
[1759829942127,0.7355,4679.6,4679.5,3.2078]
[1759829942338,0.7355,4679.6,4679.5,3.4218]
[1759829944537,0.7355,4679.6,4679.5,3.6285]
[1759829945341,0.7355,4679.6,4679.5,3.4218]
[1759829947439,0.7355,4679.6,4679.5,3.6285]
[1759829947640,0.38447,4678.9,4678.5,3.2078]
[1759829947845,0.7154,4678.6,4678.5,3.2078]
[1759829948039,0.7154,4678.6,4678.5,3.4218]
[1759829948239,0.7154,4678.1,4678.0,3.41727568]
[1759829948544,0.7154,4678.1,4678.0,3.21057568]
[1759829948744,0.7154,4678.1,4678.0,3.42457568]
[1759829950845,0.7154,4678.1,4678.0,3.63127568]
[1759829953647,0.7154,4678.1,4678.0,4.16287568]
[1759829954839,0.3029,4678.1,4678.0,4.16287568]
[1759829955046,0.3029,4678.9,4678.8,0.38448]
[1759829955251,0.3029,4678.9,4678.8,1.33678]
[1759829955450,0.5078,4678.9,4678.8,1.33678]
[1759829958953,3.2078,4679.3,4679.2,0.7383]
[1759829959153,3.5107,4679.3,4679.2,0.9523]
[1759829959346,3.7156,4679.3,4679.2,0.9523]
[1759829960748,3.9232,4679.3,4679.2,0.9523]
[1759829960953,3.9232,4679.3,4679.2,0.6389]
[1759829961858,3.9232,4679.3,4679.2,0.9523]
[1759829962456,4.30764,4679.3,4679.2,1.33675]
[1759829962752,3.9232,4679.3,4679.2,1.33675]
[1759829963151,3.7156,4679.3,4679.2,1.33675]
[1759829963754,3.5107,4679.3,4679.2,1.33675]
[1759829964150,0.3029,4679.3,4679.2,1.33675]
[1759829964955,0.5078,4679.3,4679.2,1.33675]
[1759829965552,3.2078,4679.8,4679.6,0.4249]
[1759829965757,3.2078,4679.8,4679.5,0.3134]
[1759829965758,3.2078,4679.8,4679.7,1.3367]
[1759829968463,0.2049,4680.3,4680.2,0.60256]
[1759829968756,0.2049,4680.3,4680.2,1.33666]
[1759829968757,0.3029,4680.3,4680.2,1.33666]
[1759829968956,3.5107,4680.4,4680.2,1.02326]
[1759829969147,3.2078,4680.4,4680.3,0.7383]
[1759829969361,0.00208699,4680.5,4680.4,1.12265]
[1759829969749,0.50988699,4680.5,4680.4,0.7383]
[1759829969955,0.71748699,4680.5,4680.4,0.7383]
[1759829970149,0.50988699,4680.5,4680.4,0.7383]
[1759829970455,0.00208699,4680.5,4680.4,0.7383]
[1759829971961,0.50988699,4680.5,4680.4,0.7383]
[1759829972748,0.54290266,4680.5,4680.4,0.7383]
[1759829973154,0.03510266,4680.5,4680.4,0.7383]
[1759829973550,0.54290266,4680.5,4680.4,0.7383]
[1759829976054,0.03510266,4680.5,4680.4,0.7383]
[1759829977859,3.2078,4681.4,4680.4,5.4249]
[1759829978164,3.2078,4681.4,4681.3,0.7226]
[1759829978464,3.747,4681.4,4681.3,0.9366]
[1759829978657,3.747,4681.4,4681.3,1.32087]
[1759829978859,3.21035553,4681.4,4681.3,1.3225952]
[1759829979559,3.22504377,4681.4,4681.3,1.3225952]
[1759829980257,0.01724377,4681.4,4681.3,1.3225952]
[1759829980460,0.02458789,4681.4,4681.3,1.3225952]
[1759829980763,0.56378789,4681.4,4681.3,1.3225952]
[1759829981557,0.57113201,4681.4,4681.3,1.3225952]
[1759829986565,0.35133201,4681.4,4681.3,1.3225952]
[1759829986866,0.03193201,4681.4,4681.3,4.5303952]
[1759829987259,0.03405827,4681.4,4681.3,4.5303952]
[1759829987665,0.35345827,4681.4,4681.3,4.5303952]
[1759829988066,0.57325827,4681.4,4681.3,4.5303952]
[1759829988266,0.35345827,4681.4,4681.3,4.5303952]
[1759829988467,0.03618453,4681.4,4681.3,4.5303952]
[1759829989269,0.04288987,4681.4,4681.3,4.5303952]
[1759829989465,0.26268987,4681.4,4681.3,4.3163952]
[1759829989773,0.78708987,4681.4,4681.3,4.0271952]
[1759829990267,0.79379521,4681.4,4681.3,4.0271952]
[1759829990573,0.79379521,4681.4,4681.3,4.5303952]
[1759829991374,0.80050055,4681.4,4681.3,4.5303952]
[1759829991770,0.80050055,4681.4,4681.3,0.4351252]
[1759829991975,0.80050055,4681.4,4681.3,0.0017252]
[1759829992370,0.80050055,4681.4,4681.3,0.2157252]
[1759829994675,0.80551762,4681.4,4681.3,0.2157252]
[1759829994974,0.80551762,4681.4,4680.3,4.16868]
[1759829994975,0.1293,4681.0,4680.3,3.5064]
[1759829995178,0.7442,4680.4,4680.3,3.6318]
[1759829995377,0.7442,4680.4,4680.3,4.31476]
[1759829995578,0.7442,4680.4,4680.3,4.52876]
[1759829995778,0.80296209,4680.4,4680.3,4.52876]
[1759829996077,0.59796209,4680.4,4680.3,4.53131041]
[1759829996579,0.37816209,4680.4,4680.3,4.53131041]
[1759829997186,0.59796209,4680.4,4680.3,4.53131041]
[1759829999179,0.59796209,4680.4,4680.3,3.21035041]
[1759829999180,0.80296209,4680.4,4680.3,3.21035041]
[1759829999388,0.80296209,4680.4,4680.3,0.21655041]
[1759829999587,0.1293,4680.0,4679.3,0.7226]
[1759829999788,0.7442,4679.9,4679.8,0.2194]
[1759830000087,0.7442,4679.9,4679.8,0.4334]
[1759830000287,0.80713781,4679.9,4679.8,0.4334]
[1759830000587,0.80713781,4679.9,4679.8,0.43564238]
[1759830001191,0.81131353,4679.9,4679.8,0.43564238]
[1759830002091,0.81548925,4679.9,4679.8,0.43564238]
[1759830003991,0.81548925,4679.9,4679.8,0.64024238]
[1759830004186,0.81548925,4679.9,4679.8,0.93884238]
[1759830004591,0.82038829,4679.9,4679.8,0.93884238]
[1759830004985,0.61538829,4679.9,4679.8,0.93884238]
[1759830005194,0.07618829,4679.9,4679.8,0.93884238]
[1759830005586,0.70686,4680.3,4679.8,0.93884238]
[1759830005891,0.08108733,4679.9,4679.8,0.96404238]
[1759830006590,0.08108733,4679.9,4679.8,1.34844238]